bitfinex-derivatives/quotes_ETHF0:USTF0_20240927
["timestamp","ask_amount","ask_price","bid_price","bid_amount"]
[1727443384952,3.58377,2659.1,2659.0,1.9712635]
[1727443385152,0.37598,2659.0,2658.9,3.1312635]
[1727443385957,1.86598,2659.0,2658.9,3.1312635]
[1727443386157,1.86598,2659.0,2658.9,1.16]
[1727443386854,0.37601,2658.8,2658.7,1.9712635]
[1727443387058,1.49,2659.0,2658.7,3.1482635]
[1727443387258,0.37601,2658.8,2658.7,3.1482635]
[1727443388249,1.49,2659.0,2658.7,1.177]
[1727443388454,3.2078,2659.1,2658.7,1.177]
[1727443388455,0.376,2658.9,2658.7,1.177]
[1727443388949,0.37601,2658.8,2658.7,3.1482635]
[1727443389156,0.37601,2658.8,2658.7,1.177]
[1727443389855,0.37601,2658.8,2658.6,1.9712635]
[1727443389856,0.37602,2658.7,2658.6,1.9712635]
[1727443390059,0.37605,2658.6,2658.4,1.9712635]
[1727443390357,0.37605,2658.5,2658.3,3.6230635]
[1727443391053,0.37605,2658.5,2658.3,1.6518]
[1727443392252,4.53585,2658.6,2658.3,1.6518]
[1727443393655,0.37606,2658.5,2658.3,1.6518]
[1727443393857,4.53585,2658.6,2658.3,1.6518]
[1727443394357,0.37606,2658.5,2658.3,1.6518]
[1727443394859,3.2078,2658.6,2658.3,1.6518]
[1727443395059,0.37601,2658.8,2658.4,3.23]
[1727443395259,1.32801,2658.9,2658.4,3.23]
[1727443395561,1.32801,2658.9,2658.4,5.2012635]
[1727443395562,0.37601,2658.8,2658.4,5.2012635]
[1727443395962,0.37601,2658.9,2658.4,3.60606]
[1727443396163,4.53579,2659.0,2658.4,5.5773135]
[1727443396468,0.37603,2658.7,2658.5,5.1790635]
[1727443396766,4.1598,2659.0,2658.5,3.2078]
[1727443396767,0.37602,2658.8,2658.5,3.2078]
[1727443397266,0.37604,2658.7,2658.5,3.2078]
[1727443397563,0.37604,2658.7,2658.3,3.6230635]
[1727443397764,0.37604,2658.6,2658.3,3.6230635]
[1727443398071,0.37607,2658.4,2658.3,1.6518]
[1727443400960,7.0311,2658.7,2658.3,1.6518]
[1727443401264,4.17008,2658.7,2658.3,1.6518]
[1727443401467,0.37607,2658.4,2658.3,1.6518]
[1727443403066,0.37606,2658.5,2658.3,1.6518]
[1727443403255,7.37788,2658.7,2658.3,1.6518]
[1727443403460,0.37607,2658.4,2658.3,1.6518]
[1727443411767,1.31625,2658.4,2658.3,1.1084]
[1727443411975,3.08275,2658.4,2658.3,0.5556]
[1727443412968,3.08275,2658.4,2657.9,0.6055]
[1727443412969,1.31644,2658.0,2657.9,0.6055]
[1727443413188,0.37617,2657.7,2657.6,1.1576]
[1727443413371,0.37617,2657.7,2657.6,1.7236]
[1727443413879,0.37616,2657.8,2657.6,1.7236]
[1727443414264,0.37617,2657.7,2657.6,1.7236]
[1727443415066,0.37616,2657.8,2657.6,1.7236]
[1727443415773,0.37617,2657.7,2657.6,1.7236]
[1727443420478,0.37615,2657.9,2657.6,1.7236]
[1727443420686,0.37615,2657.8,2657.6,1.7236]
[1727443421471,3.2078,2658.1,2657.6,5.486]
[1727443421676,3.2078,2658.1,2657.6,1.7236]
[1727443421882,0.37614,2657.9,2657.6,1.7236]
[1727443422282,0.37614,2658.0,2657.6,1.7236]
[1727443422477,0.37614,2658.0,2657.7,1.45571021]
[1727443422680,0.37614,2658.0,2657.6,1.7236]
[1727443422979,0.37614,2657.9,2657.7,1.45570841]
[1727443423173,0.37614,2657.9,2657.6,1.7236]
[1727443423375,0.37614,2657.9,2657.7,1.45571779]
[1727443423689,3.2078,2658.1,2657.6,1.7236]
[1727443423878,0.37614,2657.9,2657.7,1.45611098]
[1727443424183,0.37614,2657.9,2657.6,1.7236]
[1727443424379,0.37614,2657.9,2657.7,1.45613419]
[1727443424588,0.37614,2657.9,2657.6,1.7236]
[1727443424773,0.37614,2657.9,2657.7,1.45654119]
[1727443424974,0.37614,2657.9,2657.6,1.7236]
[1727443425178,0.37614,2657.9,2657.7,1.45654645]
[1727443425376,0.37614,2657.9,2657.6,1.7236]
[1727443425582,0.37614,2657.9,2657.7,1.45706229]
[1727443425777,0.37613,2658.0,2657.8,1.45706229]
[1727443425978,0.37613,2658.0,2657.6,3.6948635]
[1727443426179,0.37613,2658.0,2657.7,1.45703584]
[1727443426582,0.37613,2658.0,2657.8,1.45703584]
[1727443426892,0.37613,2658.0,2657.6,3.6948635]
[1727443426893,1.91522,2658.3,2657.7,1.9712635]
[1727443427078,0.37613,2658.0,2657.8,1.45763723]
[1727443427279,0.37613,2658.0,2657.9,1.45763723]
[1727443430081,0.37613,2658.0,2657.9,3.42890073]
[1727443432390,0.37613,2658.0,2657.9,6.3499931]
[1727443432695,0.37613,2658.0,2657.9,3.42890073]
[1727443432990,0.37613,2658.0,2657.9,6.34999571]
[1727443435282,0.37613,2658.0,2657.9,3.42890073]
[1727443435478,0.37613,2658.0,2657.9,6.35107034]
[1727443436291,1.31645,2658.0,2657.9,6.35107034]
[1727443436494,1.31645,2658.0,2657.9,3.42890073]
[1727443436684,0.37613,2658.0,2657.9,3.42890073]
[1727443436879,0.37613,2658.0,2657.9,1.45763723]
[1727443437084,0.37613,2658.0,2657.9,3.42890073]
[1727443437285,0.37613,2658.0,2657.9,1.45763723]
[1727443437786,2.64709,2658.1,2657.9,1.45763723]
[1727443437986,1.49,2658.0,2657.8,1.9712635]
[1727443438279,2.80644,2658.0,2657.9,1.4612674]
[1727443438680,6.56884,2658.0,2657.9,1.4612674]
[1727443441587,0.37614,2657.9,2657.8,1.9712635]
[1727443441794,0.37614,2657.9,2657.8,3.43047641]
[1727443442287,0.37614,2657.9,2657.8,6.34934331]
[1727443442991,0.37614,2657.9,2657.8,4.37807981]
[1727443443894,1.31649,2657.9,2657.8,6.34837094]
[1727443444097,1.31649,2657.9,2657.8,3.42950404]
[1727443444595,1.31649,2657.9,2657.8,6.34949521]
[1727443445202,2.25684,2657.9,2657.8,3.42950404]
[1727443445389,6.01924,2657.9,2657.8,2.93739527]
[1727443446290,9.24924,2657.9,2657.8,2.93739527]
[1727443447994,9.24924,2657.9,2657.8,1.45921291]
[1727443448299,8.30889,2657.9,2657.8,1.45921291]
[1727443449202,1.31654,2657.8,2657.7,1.47818236]
[1727443449501,1.31659,2657.7,2657.6,1.47818236]
[1727443449702,6.29019,2657.7,2657.6,2.93806114]
[1727443449994,6.29019,2657.7,2657.6,1.45987878]
[1727443450902,10.05259,2657.7,2657.6,1.45987878]
[1727443451100,1.31664,2657.6,2657.5,1.47818236]
[1727443451299,2.25717,2657.5,2657.4,1.47818236]
[1727443451603,1.31674,2657.4,2657.3,1.47818236]
[1727443451901,1.31674,2657.4,2657.1,1.47818236]
[1727443451902,0.94056,2657.3,2657.1,1.47818236]
[1727443452203,9.27654,2657.2,2657.1,1.47818236]
[1727443452399,9.27654,2657.2,2657.1,1.45971715]
[1727443452593,12.09914,2657.2,2657.0,1.47818236]
[1727443452796,0.37627,2657.0,2656.9,1.47818236]
[1727443452990,3.60627,2657.0,2656.9,2.9373537]
[1727443453590,4.54694,2657.0,2656.9,2.9373537]
[1727443454699,4.54694,2657.0,2656.9,1.45917134]
[1727443455697,7.75474,2657.0,2656.9,1.45917134]
[1727443456006,7.75474,2657.0,2656.7,0.70219236]
[1727443456007,0.94074,2656.8,2656.7,0.70219236]
[1727443456193,0.37635,2656.4,2656.3,2.55029113]
[1727443456396,0.37635,2656.4,2656.3,2.03204814]
[1727443456700,0.37635,2656.4,2656.3,0.58]
[1727443457696,0.37638,2656.2,2656.1,0.5933]
[1727443457998,0.37638,2656.2,2655.9,0.6037]
[1727443457999,0.37641,2656.0,2655.9,0.6037]
[1727443458212,3.60641,2656.0,2655.9,0.6037]
[1727443459709,0.37643,2655.9,2655.7,1.2027]
[1727443459902,3.23,2655.8,2655.7,1.2027]
[1727443460211,3.60644,2655.8,2655.7,0.5933]
[1727443460821,0.37645,2655.7,2655.4,1.773]
[1727443461002,3.23,2655.5,2655.4,1.773]
[1727443462696,3.23,2655.5,2655.0,3.2078]
[1727443462897,3.60654,2655.1,2655.0,3.2078]
[1727443463309,0.37658,2654.8,2654.4,3.2078]
[1727443463615,3.23,2654.6,2654.5,1.1209]
[1727443463808,0.958,2654.9,2654.5,1.1209]
[1727443464009,3.23,2654.7,2654.5,1.1209]
[1727443464404,3.6066,2654.7,2654.5,1.1209]
[1727443465019,3.23,2654.7,2654.5,1.1209]
[1727443465208,3.6066,2654.7,2654.5,1.1209]
[1727443465610,0.37661,2654.6,2654.5,1.1209]
[1727443466210,3.6066,2654.7,2654.5,1.1209]
[1727443467312,3.23,2654.7,2654.5,1.1209]
[1727443467610,3.6066,2654.7,2654.5,1.1209]
[1727443468410,0.37661,2654.6,2654.5,1.1209]
[1727443468921,3.6066,2654.7,2654.5,1.1209]
[1727443469108,4.5646,2654.7,2654.5,1.1209]
[1727443469307,0.37661,2654.6,2654.5,1.1209]
[1727443470511,4.188,2654.7,2654.5,1.1209]
[1727443470920,0.37661,2654.6,2654.5,1.1209]
[1727443471110,4.5646,2654.7,2654.5,1.1209]
[1727443471307,3.6066,2654.7,2654.5,1.1209]
[1727443471514,0.37658,2654.8,2654.5,4.8881]
[1727443471714,4.56457,2654.9,2654.5,1.1209]
[1727443472013,0.37658,2654.8,2654.5,1.1209]
[1727443472319,3.60654,2655.1,2654.6,3.7672]
[1727443472515,0.959,2655.0,2654.7,3.2078]
[1727443472818,3.60655,2655.1,2654.5,1.49751]
[1727443473018,4.56555,2655.1,2654.6,0.3766]
[1727443473227,0.37655,2655.0,2654.5,1.49751]
[1727443473422,4.56554,2655.1,2654.5,1.49751]
[1727443474426,4.56554,2655.1,2654.6,0.3766]
[1727443474626,3.23,2655.1,2654.7,3.58438]
[1727443474816,4.54332,2655.2,2654.7,3.2078]
[1727443475018,7.77332,2655.2,2654.7,3.2078]
[1727443475324,7.77332,2655.2,2654.7,3.58439]
[1727443475521,0.37654,2655.1,2654.7,3.2078]
[1727443477023,0.37655,2655.0,2654.7,3.2078]
[1727443477219,4.17138,2655.0,2654.7,3.2078]
[1727443477424,3.60658,2654.8,2654.7,3.2078]
[1727443477631,4.54803,2654.8,2654.7,3.2078]
[1727443477922,4.54803,2654.8,2654.5,1.1209]
[1727443477923,3.23,2654.8,2654.5,1.1209]
[1727443478125,4.54813,2654.6,2654.5,1.1209]
[1727443478820,3.60661,2654.6,2654.5,1.1209]
[1727443479932,3.23,2654.6,2654.5,1.1209]
[1727443480115,3.60661,2654.6,2654.5,1.1209]
[1727443481129,0.959,2654.8,2654.5,4.8881]
[1727443481324,0.37657,2654.9,2654.5,1.1209]
[1727443481527,0.37657,2654.9,2654.6,0.5786]
[1727443481824,0.37658,2654.8,2654.6,0.5786]
[1727443482728,4.189,2655.0,2654.6,0.5786]
[1727443483032,0.37656,2654.9,2654.6,0.5786]
[1727443483426,0.37658,2654.8,2654.6,0.5786]
[1727443483827,0.37657,2654.9,2654.6,0.5786]
[1727443484026,4.189,2655.0,2654.6,0.5786]
[1727443484027,0.37658,2654.8,2654.6,0.5786]
[1727443484736,0.37657,2654.9,2654.6,0.5786]
[1727443485734,4.189,2655.0,2654.6,0.5786]
[1727443485928,3.23,2654.7,2654.6,0.5786]
[1727443487531,1.49996,2655.1,2654.6,4.7224]
[1727443487532,0.959,2655.1,2654.6,4.7224]
[1727443487833,3.23,2655.2,2654.7,3.2078]
[1727443487834,0.37657,2654.9,2654.7,3.2078]
[1727443488247,3.60656,2655.0,2654.7,3.2078]
[1727443488938,0.37656,2654.9,2654.7,3.2078]
[1727443489232,1.90032,2655.2,2654.7,3.2078]
[1727443489233,4.54803,2654.8,2654.7,3.2078]
[1727443489933,0.37661,2654.6,2654.5,1.1209]
[1727443490129,3.60661,2654.6,2654.5,1.1209]
[1727443490832,0.37665,2654.3,2654.2,3.2078]
[1727443493733,0.37665,2654.3,2654.0,0.5771]
[1727443493734,0.37668,2654.1,2654.0,0.5771]
[1727443493930,0.37669,2654.0,2653.9,3.2078]
[1727443494329,3.23,2654.1,2653.9,3.2078]
[1727443494330,3.60668,2654.1,2653.9,3.2078]
[1727443495335,0.37669,2654.0,2653.9,3.2078]
[1727443495637,3.60669,2654.1,2653.9,3.2078]
[1727443495838,0.37669,2654.0,2653.9,3.2078]
[1727443496034,3.23,2654.1,2653.9,6.9758]
[1727443496238,0.37669,2654.0,2653.9,3.2078]
[1727443496742,0.37669,2654.0,2653.9,6.9758]
[1727443496940,0.37669,2654.0,2653.9,3.2078]
[1727443497946,3.23,2654.1,2653.9,3.2078]
[1727443498252,0.37669,2654.0,2653.9,3.2078]
[1727443498731,3.23,2654.1,2653.9,8.41513705]
[1727443498732,0.37668,2654.1,2653.9,8.41513705]
[1727443498933,3.23,2654.3,2654.0,4.14468]
[1727443499139,0.37667,2654.2,2653.9,3.2078]
[1727443499332,6.4378,2654.6,2654.0,1.4392871]
[1727443499537,6.4378,2654.6,2654.1,1.8159571]
[1727443499740,0.37664,2654.4,2654.2,2.0441871]
[1727443499940,0.37664,2654.4,2654.2,1.1951]
[1727443500136,3.23,2654.6,2654.2,4.4029]
[1727443500342,3.23,2654.4,2654.2,4.4029]
[1727443500544,0.95326,2654.3,2654.0,2.34698113]
[1727443500743,0.37666,2654.2,2654.1,1.44126207]
[1727443500938,3.60666,2654.2,2654.1,1.44126207]
[1727443501337,3.23,2654.2,2654.1,1.44126207]
[1727443501536,3.23,2654.3,2654.1,7.1795532]
[1727443501735,3.23,2654.3,2654.2,4.5650532]
[1727443501941,3.23,2654.3,2654.2,8.3322532]
[1727443502135,3.23,2654.3,2654.2,4.5650532]
[1727443502445,3.23,2654.3,2654.2,10.65782651]
[1727443502744,3.23,2654.3,2654.2,8.68753538]
[1727443502940,3.23,2654.3,2654.2,10.65573791]
[1727443503141,3.23,2654.3,2654.2,10.65576328]
[1727443503344,3.23,2654.3,2654.2,12.45473538]
[1727443503551,3.60665,2654.3,2654.2,8.68753538]
[1727443503740,2.66455056,2654.3,2654.2,4.89893538]
[1727443504049,3.60665,2654.3,2654.2,4.89893538]
[1727443504347,3.60665,2654.3,2654.2,6.8743196]
[1727443504544,3.60665,2654.3,2654.2,4.90489099]
[1727443505045,3.60665,2654.3,2654.2,6.87507613]
[1727443505248,3.23,2654.3,2654.2,6.87507613]
[1727443505544,3.23,2654.3,2654.2,4.90489099]
[1727443505748,3.23,2654.3,2654.2,7.36980542]
[1727443506043,3.23,2654.3,2654.2,10.57760542]
[1727443506239,3.60665,2654.3,2654.2,10.57760542]
[1727443506546,3.23,2654.3,2654.2,10.57760542]
[1727443507645,3.23,2654.3,2654.2,8.11269099]
[1727443509444,3.60663,2654.5,2654.2,8.48935099]
[1727443509640,1.31822,2654.4,2654.3,4.33219099]
[1727443509847,5.13782,2654.4,2654.3,6.3054446]
[1727443510450,4.19623,2654.4,2654.3,6.3054446]
[1727443510655,5.13782,2654.4,2654.3,6.3054446]
[1727443510949,4.78593,2654.4,2654.3,6.3054446]
[1727443511248,4.78593,2654.4,2654.3,3.41731727]
[1727443512243,4.78593,2654.4,2654.3,6.30275142]
[1727443513352,4.78593,2654.4,2654.3,3.41731727]
[1727443513949,4.19623,2654.4,2654.3,6.30246935]
[1727443515249,4.19623,2654.4,2654.3,3.41731727]
[1727443515851,4.19623,2654.4,2654.3,1.44406366]
[1727443516351,4.19623,2654.4,2654.3,3.41731727]
[1727443516654,4.19623,2654.4,2654.3,1.44406366]
[1727443516954,5.13782,2654.4,2654.3,1.44406366]
[1727443518647,0.37665,2654.3,2654.2,1.97325361]
[1727443518852,0.37665,2654.3,2654.2,6.30040732]
[1727443520260,1.31828,2654.3,2654.2,3.41563818]
[1727443520453,1.31828,2654.3,2654.2,6.30057514]
[1727443520661,1.31828,2654.3,2654.2,3.41563818]
[1727443520961,1.31828,2654.3,2654.2,1.44238457]
[1727443521157,1.31828,2654.3,2654.2,2.9220371]
[1727443522346,1.32365,2654.3,2654.2,2.9220371]
[1727443522545,1.32365,2654.3,2654.2,1.44238457]
[1727443523146,2.26528,2654.3,2654.2,2.92227686]
[1727443523650,2.26528,2654.3,2654.2,1.44275102]
[1727443523859,2.26528,2654.3,2654.2,2.92280522]
[1727443524454,2.26528,2654.3,2654.2,1.44275102]
[1727443524751,0.37665,2654.3,2654.2,1.44275102]
[1727443524950,1.32265,2654.3,2654.2,1.44275102]
[1727443525257,1.32265,2654.3,2654.2,3.41600463]
[1727443525457,1.32265,2654.3,2654.2,6.30157866]
[1727443525458,0.37665,2654.3,2654.2,6.30157866]
[1727443525651,3.8196,2654.4,2654.2,3.41600463]
[1727443525860,3.23,2654.4,2654.3,2.47000463]
[1727443526051,3.60663,2654.4,2654.3,2.47000463]
[1727443526256,3.60663,2654.4,2654.3,3.38222284]
[1727443526662,3.60663,2654.4,2654.3,5.35525194]
[1727443527161,3.60663,2654.4,2654.3,2.46978012]
[1727443527862,3.60663,2654.4,2654.3,5.34758568]
[1727443528362,3.60663,2654.4,2654.3,4.8508164]
[1727443528963,3.23,2654.4,2654.3,4.8508164]
[1727443529162,3.60663,2654.4,2654.3,2.8777873]
[1727443529366,3.60663,2654.4,2654.3,4.85117385]
[1727443529662,3.60663,2654.4,2654.3,2.8777873]
[1727443529860,3.60663,2654.4,2654.3,4.85141647]
[1727443530255,3.60663,2654.4,2654.3,1.97362917]
[1727443530759,3.60663,2654.4,2654.3,4.85241228]
[1727443531367,3.60663,2654.4,2654.3,2.87878311]
[1727443531856,3.60663,2654.4,2654.3,5.34501987]
[1727443532056,3.60663,2654.4,2654.3,2.87878311]
[1727443533251,3.60663,2654.4,2654.3,5.34501987]
[1727443535265,4.54822,2654.4,2654.3,2.87878311]
[1727443535861,4.54822,2654.4,2654.3,4.85443279]
[1727443536062,3.60663,2654.4,2654.3,4.85443279]
[1727443536258,3.23,2654.4,2654.3,5.34501987]
[1727443536459,3.23,2654.4,2654.3,2.87878311]
[1727443536657,3.23,2654.4,2654.3,7.48883783]
[1727443536862,3.23,2654.4,2654.3,10.42830452]
[1727443537166,3.23,2654.4,2654.3,14.19550452]
[1727443537356,3.23,2654.6,2654.3,12.19535074]
[1727443537554,3.23,2654.6,2654.4,10.45180332]
[1727443537872,3.23,2654.6,2654.5,8.66763783]
[1727443538069,3.23,2654.6,2654.5,9.30093783]
[1727443539367,3.23,2654.6,2654.5,4.69088311]
[1727443539563,3.60661,2654.6,2654.5,4.69088311]
[1727443539763,3.23,2654.6,2654.5,4.69088311]
[1727443540655,3.60661,2654.6,2654.5,4.69088311]
[1727443541161,3.23,2654.6,2654.5,4.69230475]
[1727443541364,3.60661,2654.6,2654.5,4.69230475]
[1727443541560,4.54813,2654.6,2654.5,4.08890475]
[1727443541766,8.93063,2654.6,2654.5,2.88020475]
[1727443541958,4.54813,2654.6,2654.5,2.88020475]
[1727443542155,3.23,2654.6,2654.5,9.11589995]
[1727443542459,3.23,2655.0,2654.7,0.37659]
[1727443542656,3.23,2655.0,2654.9,2.46796799]
[1727443542859,3.23,2655.0,2654.8,1.7866]
[1727443543164,3.23,2655.0,2654.9,2.87958419]
[1727443543758,2.28809169,2655.0,2654.9,2.87958419]
[1727443544063,2.28809169,2655.0,2654.9,6.64598419]
[1727443544364,2.28809169,2655.0,2654.9,9.11253122]
[1727443545769,2.66464169,2655.0,2654.9,6.78085124]
[1727443545961,2.66464169,2655.0,2654.9,4.31430421]
[1727443546161,2.66464169,2655.0,2654.9,6.78085124]
[1727443546356,2.66464169,2655.0,2654.9,4.31430421]
[1727443546666,2.66464169,2655.0,2654.9,6.78085124]
[1727443547357,2.28809169,2655.0,2654.9,10.54725124]
[1727443547664,2.47684,2655.4,2654.9,10.54725124]
[1727443547665,3.23,2655.2,2655.0,0.37654]
[1727443547863,3.23,2655.2,2655.1,6.76725432]
[1727443548062,3.23,2655.2,2655.1,4.30239627]
[1727443548258,3.23,2655.2,2655.1,11.27659627]
[1727443548467,3.23,2655.2,2655.1,13.74039149]
[1727443549069,3.23,2655.2,2655.1,9.97399149]
[1727443551458,3.23,2655.2,2655.1,10.35052149]
[1727443551867,3.23,2655.4,2655.2,0.37652]
[1727443552067,3.60649,2655.4,2655.3,8.10175387]
[1727443552270,3.60649,2655.4,2655.3,5.23348969]
[1727443552472,3.60649,2655.4,2655.3,3.26423209]
[1727443552671,3.60649,2655.4,2655.3,3.26194006]
[1727443554262,3.60649,2655.4,2655.3,4.73776332]
[1727443555063,4.54773,2655.4,2655.3,0.98392106]
[1727443555267,1.31778,2655.3,2655.2,0.98392106]
[1727443555469,4.54778,2655.3,2655.2,0.98392106]
[1727443556665,4.22031,2655.3,2655.2,0.98392106]
[1727443557166,3.60651,2655.3,2655.2,0.98392106]
[1727443557465,3.60651,2655.3,2655.2,3.60460446]
[1727443557466,3.23,2655.3,2655.2,3.60460446]
[1727443557671,3.23,2655.3,2655.2,2.62095666]
[1727443557872,0.3765,2655.4,2655.2,4.09677992]
[1727443558074,0.3765,2655.4,2655.3,0.98364516]
[1727443558273,3.6065,2655.4,2655.3,0.98364516]
[1727443558966,3.23,2655.4,2655.3,0.98364516]
[1727443559159,3.23,2655.4,2655.3,2.90406734]
[1727443560661,3.23,2655.4,2655.3,2.41150177]
[1727443560863,8.31333,2655.4,2655.3,2.41150177]
[1727443561064,8.31333,2655.4,2655.1,0.98325769]
[1727443561065,1.31783,2655.2,2655.1,0.98325769]
[1727443561276,1.31787,2655.1,2655.0,0.98325769]
[1727443561565,0.37655,2655.0,2654.9,0.98325769]
[1727443561867,3.60655,2655.0,2654.9,0.98325769]
[1727443562367,3.60655,2655.0,2654.9,2.41132584]
[1727443562564,3.60655,2655.0,2654.9,2.41153329]
[1727443564765,3.60655,2655.0,2654.9,0.98346514]
[1727443564969,4.54793,2655.0,2654.9,0.98346514]
[1727443565367,4.54793,2655.0,2654.9,2.41179961]
[1727443565678,4.54793,2655.0,2654.9,0.98346514]
[1727443565872,3.60655,2655.0,2654.9,0.98346514]
[1727443566176,3.60655,2655.0,2654.9,2.41180032]
[1727443567364,4.54793,2655.0,2654.9,1.42862884]
[1727443567571,4.54793,2655.0,2654.9,2.9044521]
[1727443567769,4.54793,2655.0,2654.9,1.42862884]
[1727443567966,4.54793,2655.0,2654.9,2.9044521]
[1727443570371,3.60655,2655.0,2654.9,2.9044521]
[1727443571980,3.60655,2655.0,2654.9,1.42862884]
[1727443572178,0.37654,2655.1,2654.9,3.39788644]
[1727443572475,0.37653,2655.1,2655.0,2.02342884]
[1727443574178,3.60652,2655.2,2655.1,2.63162884]
[1727443575882,4.22172,2655.2,2655.1,3.52097822]
[1727443576688,4.22172,2655.2,2655.1,2.90587822]
[1727443576880,5.16303,2655.2,2655.1,2.90587822]
[1727443577179,5.16303,2655.2,2655.1,2.4154678]
[1727443577379,5.16303,2655.2,2655.1,2.90767579]
[1727443577581,4.22172,2655.2,2655.1,2.90767579]
[1727443578379,4.22172,2655.2,2655.1,1.43042641]
[1727443580386,4.22172,2655.2,2655.1,3.39968401]
[1727443580782,4.22172,2655.2,2655.1,1.43042641]
[1727443581182,4.22172,2655.2,2655.1,3.39968401]
[1727443582285,4.22172,2655.2,2655.1,6.26437853]
[1727443582479,4.22172,2655.2,2655.1,3.39968401]
[1727443583286,4.22172,2655.2,2655.1,6.26477774]
[1727443583676,4.22172,2655.2,2655.1,3.39968401]
[1727443584089,4.22172,2655.2,2655.1,6.264757]
[1727443584292,4.22172,2655.2,2655.1,6.26513017]
[1727443584487,3.60652,2655.2,2655.1,4.29587257]
[1727443585186,3.23,2655.4,2655.1,4.67240257]
[1727443585379,3.23,2655.6,2655.3,3.5843]
[1727443585580,3.23,2655.6,2655.4,8.36805779]
[1727443585794,3.23,2655.8,2655.5,4.67235257]
[1727443586089,3.23,2655.8,2655.6,6.7619813]
[1727443586283,3.23,2655.8,2655.7,4.89497257]
[1727443586682,3.60644,2655.8,2655.7,4.89497257]
[1727443586986,3.60644,2655.8,2655.7,4.00397217]
[1727443587178,3.60644,2655.8,2655.7,6.86862555]
[1727443587381,3.60644,2655.8,2655.7,4.0039941]
[1727443587988,11.52094,2655.8,2655.7,1.43233208]
[1727443588192,0.37652,2655.2,2655.1,2.46610873]
[1727443588387,0.37652,2655.2,2655.1,3.42767062]
[1727443588388,3.60652,2655.2,2655.1,3.42767062]
[1727443588695,0.37653,2655.1,2655.0,0.6346]
[1727443588883,0.37653,2655.1,2655.0,1.6676859]
[1727443591278,0.37655,2655.0,2654.9,3.2078]
[1727443591491,3.60655,2655.0,2654.9,6.0448317]
[1727443591786,0.37659,2654.8,2654.5,5.67390873]
[1727443591995,3.23,2654.7,2654.6,3.8703414]
[1727443592986,3.23,2654.7,2654.6,3.39936208]
[1727443593583,3.23,2654.8,2654.6,9.07045739]
[1727443593787,0.6281,2655.0,2654.7,4.73144866]
[1727443593788,0.37657,2654.9,2654.7,4.73144866]
[1727443593989,3.23,2655.2,2654.8,2.83714866]
[1727443594188,0.37654,2655.1,2654.9,2.83714866]
[1727443594395,0.37655,2655.0,2654.8,2.46610873]
[1727443594699,0.37654,2655.1,2654.9,2.83661658]
[1727443594889,3.60653,2655.2,2655.0,2.83661658]
[1727443595089,3.60653,2655.2,2655.1,4.08041658]
[1727443595479,3.60653,2655.2,2655.1,1.2438]
[1727443596498,3.6065,2655.4,2655.1,4.08051644]
[1727443596686,3.23,2655.4,2655.2,2.83671644]
[1727443596892,3.60649,2655.4,2655.3,2.83658414]
[1727443597704,3.23,2655.6,2655.3,2.83658414]
[1727443597997,3.23,2655.6,2655.2,3.09060873]
[1727443597998,0.37648,2655.5,2655.4,5.30269287]
[1727443598194,3.60647,2655.6,2655.4,5.30269287]
[1727443598389,3.60647,2655.6,2655.5,3.45238414]
[1727443598791,3.60647,2655.6,2655.5,5.91849287]
[1727443602196,3.60647,2655.6,2655.5,3.45238414]
[1727443602391,3.60647,2655.6,2655.5,5.91849287]
[1727443603393,3.60647,2655.6,2655.5,3.45238414]
[1727443603795,3.60647,2655.6,2655.5,4.04368414]
[1727443603990,3.60647,2655.6,2655.5,6.50979287]
[1727443604294,3.60647,2655.6,2655.5,4.04368414]
[1727443604295,4.54764,2655.6,2655.5,4.04368414]
[1727443604494,0.9412,2655.5,2655.2,3.09060873]
[1727443604693,3.60649,2655.4,2655.3,5.30094297]
[1727443606900,3.60649,2655.4,2655.3,5.299334]
[1727443607899,3.60649,2655.4,2655.3,2.83483424]
[1727443608195,3.60649,2655.4,2655.3,4.24808865]
[1727443608594,0.37649,2655.5,2655.3,8.01368865]
[1727443608796,0.37647,2655.6,2655.4,4.62456865]
[1727443608992,0.37647,2655.6,2655.5,6.58013222]
[1727443609192,0.37647,2655.6,2655.5,7.99338663]
[1727443609997,6.4378,2656.1,2655.5,15.29478865]
[1727443610199,0.3764,2656.1,2655.8,2.84016698]
[1727443610395,0.3764,2656.1,2655.9,7.95592563]
[1727443610703,0.37638,2656.2,2656.0,7.35272563]
[1727443610902,0.37638,2656.2,2656.1,4.24808865]
[1727443612491,0.37638,2656.2,2656.1,4.23622055]
[1727443612902,0.37638,2656.2,2656.1,1.41325441]
[1727443615108,0.37638,2656.2,2656.1,2.8893329]
[1727443615302,0.37638,2656.2,2656.1,2.88911695]
[1727443615819,1.31733,2656.2,2656.1,2.88911405]
[1727443616012,1.94823,2656.2,2656.1,2.88911405]
[1727443616309,5.71303,2656.2,2656.1,2.88911405]
[1727443616507,5.71303,2656.2,2656.1,1.41063259]
[1727443620006,1.00728,2656.2,2656.1,1.41063259]
[1727443620203,4.77208,2656.2,2656.1,1.41063259]
[1727443620411,4.77208,2656.2,2656.1,2.88649223]
[1727443620602,1.00728,2656.2,2656.1,2.88649223]
[1727443620798,4.77208,2656.2,2656.1,2.88649223]
[1727443621004,4.77208,2656.2,2656.1,1.41063259]
[1727443621407,0.37639,2656.1,2656.0,1.47585964]
[1727443621611,3.04146959,2656.1,2656.0,1.41021961]
[1727443622012,3.41785959,2656.1,2656.0,1.41021961]
[1727443622512,4.14867,2656.5,2656.0,1.41021961]
[1727443622713,7.3548,2656.5,2656.3,1.47520763]
[1727443623010,0.37636,2656.3,2656.2,1.47520763]
[1727443623202,0.37636,2656.4,2656.2,2.8829108]
[1727443623401,0.37636,2656.4,2656.3,1.40770317]
[1727443623606,0.37636,2656.4,2656.3,2.8829108]
[1727443624305,3.23,2656.5,2656.3,2.8829108]